{"text_format":"3","workbook":"xlsx","n_sheets":1,"sheets":["附件2"],"not_rendered":{"defined_names":2},"read":"whole","date_system":"1900"}

{"sheet":"附件2","index":0,"n_rows":42,"n_cols":23,"rows_kept":42,"merged":[[1,0,1,22],[41,0,41,1]]}
[]
["天水市麦积区2024年“特岗计划”学科岗位需求计划表"]
["设岗学校","学校类型","合计","语文","数学","英语","物理","化学","历史","地理","生物","政治","音乐","美术","体育","信息技术","心理辅导","科学","小学全科","小学科学","劳动教育","生源要求","备注"]
["麦积区伯阳初级中学","初级中学",1,{"$nulls":9},1,{"$nulls":8},"麦积区户籍\n或麦积区生源","本科及以上毕业生"]
["麦积区伯阳初级中学","初级中学",1,{"$nulls":12},1,{"$nulls":5},"麦积区户籍\n或麦积区生源","本科及以上毕业生"]
["麦积区伯阳初级中学","初级中学",1,{"$nulls":3},1,{"$nulls":14},"麦积区户籍\n或麦积区生源","本科及以上毕业生"]
["麦积区街子初级中学","初级中学",1,{"$nulls":13},1,{"$nulls":4},"麦积区户籍\n或麦积区生源","本科及以上毕业生"]
["麦积区街子初级中学","初级中学",1,{"$nulls":11},1,{"$nulls":6},"麦积区户籍\n或麦积区生源","本科及以上毕业生"]
["麦积区街子初级中学","初级中学",1,{"$nulls":3},1,{"$nulls":14},"麦积区户籍\n或麦积区生源","本科及以上毕业生"]
["麦积区街子初级中学","初级中学",1,{"$nulls":12},1,{"$nulls":5},"麦积区户籍\n或麦积区生源","本科及以上毕业生"]
["麦积区街子初级中学","初级中学",1,{"$nulls":7},1,{"$nulls":10},"麦积区户籍\n或麦积区生源","本科及以上毕业生"]
["麦积镇街亭小学","完小",1,{"$nulls":12},1,{"$nulls":5},"麦积区户籍\n或麦积区生源","本科及以上毕业生和师范专业专科毕业生"]
["麦积区麦积中心小学","完小",1,{"$nulls":9},1,{"$nulls":8},"麦积区户籍\n或麦积区生源","本科及以上毕业生和师范专业专科毕业生"]
["麦积镇宏罗小学","完小",1,{"$nulls":8},1,{"$nulls":9},"麦积区户籍\n或麦积区生源","本科及以上毕业生和师范专业专科毕业生"]
["麦积镇永庆小学","完小",1,null,1,{"$nulls":16},"麦积区户籍\n或麦积区生源","本科及以上毕业生和师范专业专科毕业生"]
["麦积镇宏罗小学","完小",1,null,1,{"$nulls":16},"麦积区户籍\n或麦积区生源","本科及以上毕业生和师范专业专科毕业生"]
["麦积镇滩子小学","完小",1,null,null,1,{"$nulls":15},"麦积区户籍\n或麦积区生源","本科及以上毕业生和师范专业专科毕业生"]
["麦积区潘集寨学校","九年一贯制（初中部）",1,{"$nulls":13},1,{"$nulls":4},"麦积区户籍\n或麦积区生源","本科及以上毕业生"]
["麦积区潘集寨学校","九年一贯制（初中部）",1,{"$nulls":8},1,{"$nulls":9},"麦积区户籍\n或麦积区生源","本科及以上毕业生"]
["麦积区潘集寨学校","九年一贯制（初中部）",1,null,1,{"$nulls":16},"麦积区户籍\n或麦积区生源","本科及以上毕业生"]
["麦积区潘集寨学校","九年一贯制（初中部）",1,null,null,1,{"$nulls":15},"麦积区户籍\n或麦积区生源","本科及以上毕业生"]
["麦积区潘集寨学校","九年一贯制（初中部）",1,{"$nulls":9},1,{"$nulls":8},"麦积区户籍\n或麦积区生源","本科及以上毕业生"]
["麦积区潘集寨学校","九年一贯制（小学部）",1,1,{"$nulls":17},"麦积区户籍\n或麦积区生源","本科及以上毕业生和师范专业专科毕业生"]
["麦积区向荣学校","初级中学",1,{"$nulls":13},1,{"$nulls":4},"麦积区户籍\n或麦积区生源","本科及以上毕业生"]
["麦积区向荣学校","初级中学",1,{"$nulls":8},1,{"$nulls":9},"麦积区户籍\n或麦积区生源","本科及以上毕业生"]
["麦积区向荣学校","初级中学",1,{"$nulls":7},1,{"$nulls":10},"麦积区户籍\n或麦积区生源","本科及以上毕业生"]
["麦积区向荣学校","初级中学",1,{"$nulls":11},1,{"$nulls":6},"麦积区户籍\n或麦积区生源","本科及以上毕业生"]
["麦积区向荣学校","初级中学",1,1,{"$nulls":17},"麦积区户籍\n或麦积区生源","本科及以上毕业生"]
["麦积区向荣学校","初级中学",2,null,2,{"$nulls":16},"麦积区户籍\n或麦积区生源","本科及以上毕业生"]
["麦积区向荣学校","初级中学",1,null,null,1,{"$nulls":15},"麦积区户籍\n或麦积区生源","本科及以上毕业生"]
["麦积区向荣学校","初级中学",1,{"$nulls":6},1,{"$nulls":11},"麦积区户籍\n或麦积区生源","本科及以上毕业生"]
["麦积区元龙中学","初级中学",1,{"$nulls":13},1,{"$nulls":4},"麦积区户籍\n或麦积区生源","本科及以上毕业生"]
["麦积区元龙中学","初级中学",1,{"$nulls":5},1,{"$nulls":12},"麦积区户籍\n或麦积区生源","本科及以上毕业生"]
["麦积区元龙中学","初级中学",2,null,null,2,{"$nulls":15},"麦积区户籍\n或麦积区生源","本科及以上毕业生"]
["麦积区吴砦初级中学","初级中学",1,{"$nulls":7},1,{"$nulls":10},"麦积区户籍\n或麦积区生源","本科及以上毕业生"]
["麦积区吴砦初级中学","初级中学",1,{"$nulls":5},1,{"$nulls":12},"麦积区户籍\n或麦积区生源","本科及以上毕业生"]
["麦积区元龙镇葡萄园小学","完小",1,1,{"$nulls":17},"麦积区户籍\n或麦积区生源","本科及以上毕业生和师范专业专科毕业生"]
["麦积区元龙镇桑渠小学","完小",1,null,1,{"$nulls":16},"麦积区户籍\n或麦积区生源","本科及以上毕业生和师范专业专科毕业生"]
["麦积区社棠镇中心小学","完小",1,{"$nulls":13},1,{"$nulls":4},"麦积区户籍\n或麦积区生源","本科及以上毕业生和师范专业专科毕业生"]
["麦积区社棠镇中心小学","完小",1,1,{"$nulls":17},"麦积区户籍\n或麦积区生源","本科及以上毕业生和师范专业专科毕业生"]
["麦积区社棠镇中心小学","完小",1,{"$nulls":11},1,{"$nulls":6},"麦积区户籍\n或麦积区生源","本科及以上毕业生和师范专业专科毕业生"]
["合     计",null,{"$f":"SUM(C4:C41)","v":40},{"$f":"SUM(D4:D41)","v":4},6,5,2,0,2,1,3,3,3,0,3,3,5,0,0,0,0,0]